fUSD/lending_fUSD_20250514
["ID","MTS","AMOUNT","RATE_DAILY","PERIOD"]
[361098090,1747253445807,-500.0,0.00011467,2]
[361098091,1747253445817,-165.98,0.00011467,2]
[361098092,1747253445826,-400.0,0.00011467,2]
[361098093,1747253445836,-400.0,0.00011467,2]
[361098094,1747253445847,-500.0,0.00011467,2]
[361098095,1747253445856,-400.0,0.00011467,2]
[361098096,1747253445867,-400.0,0.00011467,2]
[361098097,1747253445877,-500.0,0.00011467,2]
[361098098,1747253445886,-400.0,0.00011467,2]
[361098099,1747253445896,-564.25,0.00011467,2]
[361098100,1747253445905,-500.0,0.00011467,2]
[361098101,1747253445915,-500.0,0.00011467,2]
[361098102,1747253445924,-500.0,0.00011467,2]
[361098103,1747253445938,-400.0,0.00011467,2]
[361098104,1747253445948,-400.0,0.00011467,2]
[361098105,1747253445957,-500.0,0.00011467,2]
[361098106,1747253445968,-400.0,0.00011467,2]
[361098107,1747253445977,-853.48,0.00011467,2]
[361098108,1747253445987,-400.0,0.00011467,2]
[361098109,1747253445997,-267.84884716,0.00011467,2]
[361098110,1747253446007,-1884.11,0.00011467,2]
[361098111,1747253446016,-500.0,0.00011467,2]
[361098112,1747253446027,-372.31803634,0.00011467,2]
[361098113,1747253446036,-500.0,0.00011467,2]
[361098114,1747253446046,-500.0,0.00011467,2]
[361098115,1747253446056,-450.0,0.00011467,2]
[361098116,1747253446066,-400.0,0.00011467,2]
[361098117,1747253446075,-400.0,0.00011467,2]
[361098118,1747253446085,-500.0,0.00011467,2]
[361098119,1747253446095,-229.61,0.00011467,2]
[361098120,1747253446105,-500.0,0.00011467,2]
[361098121,1747253446115,-450.0,0.00011467,2]
[361098122,1747253446125,-400.0,0.00011467,2]
[361098123,1747253446134,-438.59,0.00011467,2]
[361098124,1747253446144,-460.9,0.00011467,2]
[361098125,1747253446153,-500.0,0.00011467,2]
[361098126,1747253446163,-400.0,0.00011467,2]
[361098127,1747253446174,-500.0,0.00011467,2]
[361098128,1747253446183,-400.0,0.00011467,2]
[361098129,1747253446194,-400.0,0.00011467,2]
[361098130,1747253446204,-400.0,0.00011467,2]
[361098131,1747253446213,-400.0,0.00011467,2]
[361098132,1747253446223,-400.0,0.00011467,2]
[361098133,1747253446233,-400.0,0.00011467,2]
[361098134,1747253446242,-400.0,0.00011467,2]
[361098135,1747253446251,-461.01,0.00011467,2]
[361098136,1747253446261,-447.99,0.00011467,2]
[361098137,1747253446271,-500.0,0.00011467,2]
[361098138,1747253446280,-400.0,0.00011467,2]
[361098139,1747253446290,-400.0,0.00011467,2]
[361098140,1747253446300,-400.0,0.00011467,2]
[361098141,1747253446310,-400.0,0.00011467,2]
[361098142,1747253446319,-400.0,0.00011467,2]
[361098143,1747253446329,-549.94280306,0.00011467,2]
[361098144,1747253446339,-400.0,0.00011467,2]
[361098145,1747253446348,-400.0,0.00011467,2]
[361098146,1747253446358,-400.0,0.00011467,2]
[361098147,1747253446367,-450.0,0.00011467,2]
[361098148,1747253446377,-400.0,0.00011467,2]
[361098149,1747253446386,-533.60225152,0.00011467,2]
[361098150,1747253446396,-500.0,0.00011467,2]
[361098151,1747253446405,-327.13749544,0.00011467,2]
[361098152,1747253446415,-400.0,0.00011467,2]
[361098153,1747253446425,-450.0,0.00011467,2]
[361098154,1747253446435,-400.0,0.00011467,2]
[361098155,1747253446445,-500.0,0.00011467,2]
[361098156,1747253446455,-400.0,0.00011467,2]
[361098157,1747253446467,-400.0,0.00011467,2]
[361098158,1747253446476,-591.76,0.00011467,2]
[361098159,1747253446486,-400.0,0.00011467,2]
[361098160,1747253446496,-400.0,0.00011467,2]
[361098161,1747253446505,-400.0,0.00011467,2]
[361098162,1747253446515,-616.33765566,0.00011467,2]
[361098163,1747253446524,-500.0,0.00011467,2]
[361098164,1747253446534,-610.07,0.00011467,2]
[361098165,1747253446543,-400.0,0.00011467,2]
[361098166,1747253446553,-150.0,0.00011467,2]
[361098167,1747253446563,-450.0,0.00011467,2]
[361098168,1747253446572,-150.0,0.00011467,2]
[361098169,1747253446582,-400.0,0.00011467,2]
[361098170,1747253446592,-1000.0,0.00011467,2]
[361098171,1747253446603,-400.0,0.00011467,2]
[361098172,1747253446613,-400.0,0.00011467,2]
[361098173,1747253446623,-400.0,0.00011467,2]
[361098174,1747253446632,-400.0,0.00011467,2]
[361098175,1747253446642,-447.78,0.00011467,2]
[361098176,1747253446652,-400.0,0.00011467,2]
[361098177,1747253446662,-400.0,0.00011467,2]
[361098178,1747253446671,-505.03,0.00011467,2]
[361098179,1747253446681,-421.41,0.00011467,2]
[361098180,1747253446691,-400.0,0.00011467,2]
[361098181,1747253446701,-485.96,0.00011467,2]
[361098182,1747253446711,-400.0,0.00011467,2]
[361098183,1747253446720,-446.1,0.00011467,2]
[361098184,1747253446729,-500.0,0.00011467,2]
[361098185,1747253446739,-400.0,0.00011467,2]
[361098186,1747253446748,-400.0,0.00011467,2]
[361098187,1747253446757,-2238.09,0.00011467,2]
[361098188,1747253446767,-434.23,0.00011467,2]
[361098189,1747253446778,-400.0,0.00011467,2]
[361098190,1747253446788,-657.83,0.00011467,2]
[361098191,1747253446797,-835.35,0.00011467,2]
[361098192,1747253446807,-400.0,0.00011467,2]
[361098193,1747253446817,-424.61,0.00011467,2]
[361098194,1747253446826,-400.0,0.00011467,2]
[361098195,1747253446836,-400.0,0.00011467,2]
[361098196,1747253446846,-500.0,0.00011467,2]
[361098197,1747253446855,-789.93,0.00011467,2]
[361098198,1747253446864,-1290.39,0.00011467,2]
[361098199,1747253446874,-274.42143183,0.00011467,2]
[361098200,1747253446883,-373.95221708,0.00011467,2]
[361098201,1747253446893,-4277.59,0.00011467,2]
[361098202,1747253446902,-400.0,0.00011467,2]
[361098203,1747253446912,-400.0,0.00011467,2]
[361098204,1747253446922,-500.0,0.00011467,2]
[361098205,1747253446935,-707.98,0.00011467,2]
[361098206,1747253446944,-400.0,0.00011467,2]
[361098207,1747253446953,-1007.49,0.00011467,2]
[361098208,1747253446963,-400.0,0.00011467,2]
[361098209,1747253446972,-421.21,0.00011467,2]
[361098210,1747253446982,-500.0,0.00011467,2]
[361098211,1747253446991,-449.81,0.00011467,2]
[361098212,1747253447001,-400.0,0.00011467,2]
[361098213,1747253447013,-500.0,0.00011467,2]
[361098214,1747253447023,-1553.42,0.00011467,2]
[361098215,1747253447033,-500.0,0.00011467,2]
[361098216,1747253447042,-1483.94,0.00011467,2]
[361098217,1747253447051,-400.0,0.00011467,2]
[361098218,1747253447061,-493.09,0.00011467,2]
[361098219,1747253447071,-1343.0,0.00011467,2]
[361098220,1747253447080,-400.0,0.00011467,2]
[361098221,1747253447090,-453.03,0.00011467,2]
[361098222,1747253447099,-400.0,0.00011467,2]
[361098223,1747253447109,-400.0,0.00011467,2]
[361098224,1747253447118,-1439.79,0.00011467,2]
[361098225,1747253447128,-400.0,0.00011467,2]
[361098226,1747253447138,-400.0,0.00011467,2]
[361098227,1747253447148,-400.0,0.00011467,2]
[361098228,1747253447159,-400.0,0.00011467,2]
[361098229,1747253447168,-7686.86,0.00011467,2]
[361098230,1747253447178,-400.0,0.00011467,2]
[361098231,1747253447188,-400.0,0.00011467,2]
[361098232,1747253447198,-400.0,0.00011467,2]
[361098233,1747253447208,-400.0,0.00011467,2]
[361098234,1747253447218,-500.0,0.00011467,2]
[361098235,1747253447227,-400.0,0.00011467,2]
[361098236,1747253447237,-400.0,0.00011467,2]
[361098237,1747253447248,-445.58,0.00011467,2]
[361098238,1747253447258,-400.0,0.00011467,2]
[361098239,1747253447268,-400.0,0.00011467,2]
[361098240,1747253447278,-784.33,0.00011467,2]
[361098241,1747253447288,-400.0,0.00011467,2]
[361098242,1747253447297,-400.0,0.00011467,2]
[361098243,1747253447307,-4375.34,0.00011467,2]
[361098244,1747253447316,-2813.86,0.00011467,2]
[361098245,1747253447326,-400.0,0.00011467,2]
[361098246,1747253447335,-400.0,0.00011467,2]
[361098247,1747253447345,-538.38,0.00011467,2]
[361098248,1747253447354,-217.62658388,0.00011467,2]
[361098249,1747253447364,-1870.02,0.00011467,2]
[361098250,1747253447373,-400.0,0.00011467,2]
[361098251,1747253447382,-1343.73,0.00011467,2]
[361098252,1747253447391,-150.0,0.00011467,2]
[361098253,1747253447399,-500.0,0.00011467,2]
[361098254,1747253447409,-400.14,0.00011467,2]
[361098255,1747253447418,-719.77,0.00011467,2]
[361098256,1747253447429,-1477.81,0.00011467,2]
[361098257,1747253447438,-4484.83,0.00011467,2]
[361098258,1747253447451,-400.0,0.00011467,2]
[361098259,1747253447461,-400.0,0.00011467,2]
[361098260,1747253447471,-512.6,0.00011467,2]
[361098261,1747253447481,-400.0,0.00011467,2]
[361098262,1747253447491,-11619.94,0.00011467,2]
[361098263,1747253447500,-150.0,0.00011467,2]
[361098264,1747253447510,-400.0,0.00011467,2]
[361098265,1747253447519,-1217.84,0.00011467,2]
[361098266,1747253447528,-150.0,0.00011467,2]
[361098267,1747253447538,-400.0,0.00011467,2]
[361098268,1747253447547,-1832.73,0.00011467,2]
[361098269,1747253447556,-2685.58,0.00011467,2]
[361098270,1747253447566,-500.0,0.00011467,2]
[361098271,1747253447575,-150.0,0.00011467,2]
[361098272,1747253447584,-500.0,0.00011467,2]
[361098273,1747253447593,-400.0,0.00011467,2]
[361098274,1747253447603,-400.0,0.00011467,2]
[361098275,1747253447613,-2307.77,0.00011467,2]
[361098276,1747253447624,-150.0,0.00011467,2]
[361098277,1747253447634,-400.0,0.00011467,2]
[361098278,1747253447644,-400.0,0.00011467,2]
[361098279,1747253447654,-400.0,0.00011467,2]
[361098280,1747253447663,-400.0,0.00011467,2]
[361098281,1747253447673,-400.0,0.00011467,2]
[361098282,1747253447683,-400.0,0.00011467,2]
[361098283,1747253447693,-400.0,0.00011467,2]
[361098284,1747253447703,-509.06,0.00011467,2]
[361098285,1747253447712,-400.0,0.00011467,2]
[361098286,1747253447722,-400.0,0.00011467,2]
[361098287,1747253447732,-419.61,0.00011467,2]
[361098288,1747253447742,-679.43,0.00011467,2]
[361098289,1747253447753,-400.0,0.00011467,2]
[361098290,1747253447763,-5009.92,0.00011467,2]
[361098291,1747253447773,-400.0,0.00011467,2]
[361098292,1747253447783,-214.53,0.00011467,2]
[361098293,1747253447792,-400.0,0.00011467,2]
[361098294,1747253447803,-735.16,0.00011467,2]
[361098295,1747253447813,-400.0,0.00011467,2]
[361098296,1747253447823,-400.0,0.00011467,2]
[361098297,1747253447835,-462.53,0.00011467,2]
[361098298,1747253447847,-166.18,0.00011467,2]
[361098299,1747253447856,-5615.06,0.00011467,2]
[361098300,1747253447868,-686.14,0.00011467,2]
[361098301,1747253447878,-400.0,0.00011467,2]
[361098302,1747253447889,-400.0,0.00011467,2]
[361098303,1747253447899,-400.0,0.00011467,2]
[361098304,1747253447910,-500.0,0.00011467,2]
[361098305,1747253447919,-19362.87,0.00011467,2]
[361098306,1747253447933,-2428.59,0.00011467,2]
[361098307,1747253447942,-150.0,0.00011467,2]
[361098308,1747253447951,-740.49,0.00011467,2]
[361098309,1747253447961,-400.0,0.00011467,2]
[361098310,1747253448182,-1019.42,0.00011467,2]
[361098311,1747253448192,-1105.69,0.00011467,2]
[361098312,1747253448202,-400.0,0.00011467,2]
[361098313,1747253448212,-400.0,0.00011467,2]
[361098314,1747253448221,-440.01,0.00011467,2]
[361098315,1747253448231,-400.0,0.00011467,2]
[361098316,1747253448240,-677.34,0.00011467,2]
[361098317,1747253448249,-797.93,0.00011467,2]
[361098318,1747253448259,-500.0,0.00011467,2]
[361098319,1747253448269,-400.0,0.00011467,2]
[361098320,1747253448278,-660.61,0.00011467,2]
[361098321,1747253448287,-400.0,0.00011467,2]
[361098322,1747253448297,-469.83734832,0.00011467,2]
[361098323,1747253448306,-506.04,0.00011467,2]
[361098324,1747253448315,-591.31,0.00011467,2]
[361098325,1747253448325,-460.6,0.00011467,2]
[361098326,1747253448334,-449.97,0.00011467,2]
[361098327,1747253448344,-400.0,0.00011467,2]
[361098328,1747253448354,-400.0,0.00011467,2]
[361098329,1747253448363,-400.0,0.00011467,2]
[361098330,1747253448372,-400.0,0.00011467,2]
[361098331,1747253448381,-400.0,0.00011467,2]
[361098332,1747253448390,-500.0,0.00011467,2]
[361098333,1747253448399,-400.0,0.00011467,2]
[361098334,1747253448408,-400.0,0.00011467,2]
[361098335,1747253448418,-420.33,0.00011467,2]
[361098336,1747253448427,-1010.22,0.00011467,2]
[361098337,1747253448437,-500.0,0.00011467,2]
[361098338,1747253448446,-13079.85,0.00011467,2]
[361098339,1747253448455,-150.0,0.00011467,2]
[361098340,1747253448465,-400.0,0.00011467,2]
[361098341,1747253448475,-712.48,0.00011467,2]
[361098342,1747253448484,-448.77132568,0.00011467,2]
[361098343,1747253448493,-400.0,0.00011467,2]
[361098344,1747253448502,-500.0,0.00011467,2]
[361098345,1747253448512,-11.77634218,0.00011467,2]
[361098346,1747253448532,-492.58365782,0.00011467,2]
[361098347,1747253448541,-417.3,0.00011467,2]
[361098348,1747253448550,-1851.6,0.00011467,2]
[361098349,1747253448560,-400.0,0.00011467,2]
[361098350,1747253448570,-692.61,0.00011467,2]
[361098351,1747253448579,-400.0,0.00011467,2]
[361098352,1747253448589,-277.58032172,0.00011467,2]
[361098353,1747253448601,-962.53967828,0.00011467,2]
[361098354,1747253448610,-400.0,0.00011467,2]
[361098355,1747253448618,-400.0,0.00011467,2]
[361098356,1747253448628,-1000.0,0.00011467,2]
[361098357,1747253448637,-150.0,0.00011467,2]
[361098358,1747253448646,-400.0,0.00011467,2]
[361098359,1747253448656,-400.0,0.00011467,2]
[361098360,1747253448665,-400.0,0.00011467,2]
[361098361,1747253448675,-662.99,0.00011467,2]
[361098362,1747253448685,-639.91,0.00011467,2]
[361098363,1747253448695,-384.94187504,0.00011467,2]
[361098364,1747253448706,-1024.74812496,0.00011467,2]
[361098365,1747253448715,-24.66606509,0.00011467,2]
[361098366,1747253448728,-475.33393491,0.00011467,2]
[361098367,1747253448737,-400.0,0.00011467,2]
[361098368,1747253448747,-504.20684407,0.00011467,2]
[361098369,1747253448757,-306.23044006,0.00011467,2]
[361098370,1747253448768,-193.76955994,0.00011467,2]
[361098371,1747253448777,-400.0,0.00011467,2]
[361098372,1747253448786,-413.75356102,0.00011467,2]
[361098373,1747253448798,-86.24643898,0.00011467,2]
[361098374,1747253448808,-411.32458197,0.00011467,2]
[361098375,1747253448819,-116.30541803,0.00011467,2]
[361098376,1747253448828,-400.0,0.00011467,2]
[361098377,1747253448838,-901.25,0.00011467,2]
[361098378,1747253448847,-400.0,0.00011467,2]
[361098379,1747253448856,-500.0,0.00011467,2]
[361098380,1747253448865,-400.0,0.00011467,2]
[361098381,1747253448875,-451.11,0.00011467,2]
[361098382,1747253448884,-276.86211271,0.00011467,2]
[361098383,1747253448894,-400.0,0.00011467,2]
[361098384,1747253448903,-3290.35,0.00011467,2]
[361098385,1747253448913,-400.0,0.00011467,2]
[361098386,1747253448922,-400.0,0.00011467,2]
[361098387,1747253448936,-500.0,0.00011467,2]
[361098388,1747253448946,-400.0,0.00011467,2]
[361098389,1747253448955,-400.0,0.00011467,2]
[361098390,1747253448964,-400.0,0.00011467,2]
[361098391,1747253448974,-400.0,0.00011467,2]
[361098392,1747253448983,-487.76,0.00011467,2]
[361098393,1747253448992,-469.58,0.00011467,2]
[361098394,1747253449001,-400.0,0.00011467,2]
[361098395,1747253449012,-782.05,0.00011467,2]
[361098396,1747253449022,-582.58,0.00011467,2]
[361098397,1747253449032,-400.0,0.00011467,2]
[361098398,1747253449042,-456.71,0.00011467,2]
[361098399,1747253449052,-500.0,0.00011467,2]
[361098400,1747253449061,-497.5,0.00011467,2]
[361098401,1747253449071,-400.0,0.00011467,2]
[361098402,1747253449081,-495.26119239,0.00011467,2]
[361098403,1747253449091,-477.73,0.00011467,2]
[361098404,1747253449101,-519.45696679,0.00011467,2]
[361098405,1747253449110,-400.0,0.00011467,2]
[361098406,1747253449120,-400.0,0.00011467,2]
[361098407,1747253449130,-631.87,0.00011467,2]
[361098408,1747253449140,-400.0,0.00011467,2]
[361098409,1747253449149,-400.0,0.00011467,2]
[361098410,1747253449159,-500.0,0.00011467,2]
[361098411,1747253449168,-213.57281708,0.00011467,2]
[361098412,1747253449178,-500.0,0.00011467,2]
[361098413,1747253449188,-400.0,0.00011467,2]
[361098414,1747253449198,-400.0,0.00011467,2]
[361098415,1747253449207,-546.33,0.00011467,2]
[361098416,1747253449216,-2405.7,0.00011467,2]
[361098417,1747253449226,-4263.1,0.00011467,2]
[361098418,1747253449236,-400.0,0.00011467,2]
[361098419,1747253449245,-780.92,0.00011467,2]
[361098420,1747253449255,-500.0,0.00011467,2]
[361098421,1747253449264,-400.0,0.00011467,2]
[361098422,1747253449273,-400.0,0.00011467,2]
[361098423,1747253449283,-500.0,0.00011467,2]
[361098424,1747253449293,-400.0,0.00011467,2]
[361098425,1747253449302,-400.0,0.00011467,2]
[361098426,1747253449312,-400.0,0.00011468,2]
[361098427,1747253449321,-503.61,0.00011468,2]
[361098428,1747253449332,-400.0,0.00011468,2]
[361098429,1747253449342,-310.83448423,0.00011468,2]
[361098430,1747253449351,-400.0,0.00011468,2]
[361098431,1747253449361,-400.0,0.00011468,2]
[361098432,1747253449371,-400.0,0.00011468,2]
[361098433,1747253449380,-360.03778692,0.00011468,2]
[361098434,1747253449389,-400.0,0.00011468,2]
[361098435,1747253449399,-1203.82,0.00011468,2]
[361098436,1747253449408,-400.0,0.00011468,2]
[361098437,1747253449419,-400.0,0.00011468,2]
[361098438,1747253449428,-886.35,0.00011468,2]
[361098439,1747253449438,-577.37,0.00011468,2]
[361098440,1747253449447,-722.1,0.00011468,2]
[361098441,1747253449457,-546.69837946,0.00011468,2]
[361098442,1747253449466,-400.0,0.00011468,2]
[361098443,1747253449475,-400.0,0.00011468,2]
[361098444,1747253449485,-400.0,0.00011468,2]
[361098445,1747253449494,-400.0,0.00011468,2]
[361098446,1747253449503,-400.0,0.00011468,2]
[361098447,1747253449513,-400.0,0.00011468,2]
[361098448,1747253449522,-400.0,0.00011468,2]
[361098449,1747253449531,-400.0,0.00011468,2]
[361098450,1747253449541,-400.0,0.00011468,2]
[361098451,1747253449550,-490.52,0.00011468,2]
[361098452,1747253449559,-400.0,0.00011468,2]
[361098453,1747253449569,-400.0,0.00011468,2]
[361098454,1747253449579,-400.0,0.00011468,2]
[361098455,1747253449587,-400.0,0.00011468,2]
[361098456,1747253449597,-400.0,0.00011468,2]
[361098457,1747253449606,-1002.43,0.00011468,2]
[361098458,1747253449616,-428.21,0.00011468,2]
[361098459,1747253449626,-400.0,0.00011468,2]
[361098460,1747253449636,-400.0,0.00011468,2]
[361098461,1747253449646,-400.0,0.00011468,2]
[361098462,1747253449655,-400.0,0.00011468,2]
[361098463,1747253449664,-515.87,0.00011468,2]
[361098464,1747253449673,-400.0,0.00011468,2]
[361098465,1747253449683,-400.0,0.00011468,2]
[361098466,1747253449692,-400.0,0.00011468,2]
[361098467,1747253449702,-469.20353511,0.00011468,2]
[361098468,1747253449711,-420.14,0.00011468,2]
[361098469,1747253449721,-400.0,0.00011468,2]
[361098470,1747253449730,-400.0,0.00011468,2]
[361098471,1747253449740,-400.0,0.00011468,2]
[361098472,1747253449749,-400.0,0.00011468,2]
[361098473,1747253449758,-310.71,0.00011468,2]
[361098474,1747253449767,-423.7,0.00011468,2]
[361098475,1747253449776,-666.13,0.00011468,2]
[361098476,1747253449785,-400.0,0.00011468,2]
[361098477,1747253449795,-400.0,0.00011468,2]
[361098478,1747253449804,-400.0,0.00011468,2]
[361098479,1747253449813,-400.0,0.00011468,2]
[361098480,1747253449822,-484.23,0.00011468,2]
[361098481,1747253449831,-400.0,0.00011468,2]
[361098482,1747253449841,-955.89,0.00011468,2]
[361098483,1747253449850,-998.51,0.00011468,2]
[361098484,1747253449859,-600.35,0.00011468,2]
[361098485,1747253449868,-400.0,0.00011468,2]
[361098486,1747253449878,-400.0,0.00011468,2]
[361098487,1747253449887,-1248.98,0.00011468,2]
[361098488,1747253449896,-400.57,0.00011468,2]
[361098489,1747253449906,-400.0,0.00011468,2]
[361098490,1747253449915,-536.72326041,0.00011468,2]
[361098491,1747253449925,-400.0,0.00011468,2]
[361098492,1747253449937,-400.0,0.00011468,2]
[361098493,1747253449948,-400.46,0.00011468,2]
[361098494,1747253449957,-400.0,0.00011468,2]
[361098495,1747253449967,-450.0,0.00011468,2]
[361098496,1747253449976,-438.8,0.00011468,2]
[361098497,1747253449986,-400.0,0.00011468,2]
[361098498,1747253449995,-400.0,0.00011468,2]
[361098499,1747253450004,-400.0,0.00011468,2]
[361098500,1747253450013,-400.0,0.00011468,2]
[361098501,1747253450023,-412.59,0.00011468,2]
[361098502,1747253450032,-400.0,0.00011468,2]
[361098503,1747253450042,-450.0,0.00011468,2]
[361098504,1747253450051,-401.61,0.00011468,2]
[361098505,1747253450060,-400.0,0.00011468,2]
[361098506,1747253450070,-400.0,0.00011468,2]
[361098507,1747253450079,-400.0,0.00011468,2]
[361098508,1747253450089,-422.83944584,0.00011468,2]
[361098509,1747253450099,-400.0,0.00011468,2]
[361098510,1747253450108,-549.21,0.00011468,2]
[361098511,1747253450118,-445.79,0.00011468,2]
[361098512,1747253450127,-400.0,0.00011468,2]
[361098513,1747253450136,-400.0,0.00011468,2]
[361098514,1747253450146,-400.0,0.00011468,2]
[361098515,1747253450155,-400.0,0.00011468,2]
[361098516,1747253450165,-544.58,0.00011468,2]
[361098517,1747253450174,-400.0,0.00011468,2]
[361098518,1747253450183,-400.0,0.00011468,2]
[361098519,1747253450193,-400.0,0.00011468,2]
[361098520,1747253450202,-500.0,0.00011468,2]
[361098521,1747253450211,-500.0,0.00011468,2]
[361098522,1747253450221,-400.0,0.00011468,2]
[361098523,1747253450231,-2382.57,0.00011468,2]
[361098524,1747253450240,-400.0,0.00011468,2]
[361098525,1747253450250,-400.0,0.00011468,2]
[361098526,1747253450259,-2000.0,0.00011468,2]
[361098527,1747253450269,-400.0,0.00011468,2]
[361098528,1747253450279,-657.27,0.00011468,2]
[361098529,1747253450288,-528.1,0.00011468,2]
[361098530,1747253450298,-873.33,0.00011468,2]
[361098531,1747253450307,-641.75,0.00011468,2]
[361098532,1747253450317,-400.0,0.00011468,2]
[361098533,1747253450327,-522.78,0.00011468,2]
[361098534,1747253450336,-400.0,0.00011468,2]
[361098535,1747253450346,-450.0,0.00011468,2]
[361098536,1747253450356,-400.0,0.00011468,2]
[361098537,1747253450365,-459.52,0.00011468,2]
[361098538,1747253450375,-450.0,0.00011468,2]
[361098539,1747253450384,-500.0,0.00011468,2]
[361098540,1747253450393,-1710.07,0.00011468,2]
[361098541,1747253450403,-400.0,0.00011468,2]
[361098542,1747253450413,-1195.36,0.00011468,2]
[361098543,1747253450422,-400.0,0.00011468,2]
[361098544,1747253450432,-400.0,0.00011468,2]
[361098545,1747253450441,-400.0,0.00011468,2]
[361098546,1747253450452,-400.0,0.00011468,2]
[361098547,1747253450461,-521.82,0.00011468,2]
[361098548,1747253450471,-400.0,0.00011468,2]
[361098549,1747253450481,-400.0,0.00011468,2]
[361098550,1747253450490,-400.0,0.00011468,2]
[361098551,1747253450500,-498.31,0.00011468,2]
[361098552,1747253450510,-400.0,0.00011468,2]
[361098553,1747253450520,-400.0,0.00011468,2]
[361098554,1747253450531,-401.92,0.00011468,2]
[361098555,1747253450542,-1340.65,0.00011468,2]
[361098556,1747253450551,-400.0,0.00011468,2]
[361098557,1747253450562,-480.34,0.00011468,2]
[361098558,1747253450571,-1891.26,0.00011468,2]
[361098559,1747253450581,-400.0,0.00011468,2]
[361098560,1747253450590,-400.0,0.00011468,2]
[361098561,1747253450601,-457.17,0.00011468,2]
[361098562,1747253450611,-519.59,0.00011468,2]
[361098563,1747253450620,-444.56,0.00011468,2]
[361098564,1747253450629,-855.72,0.00011468,2]
[361098565,1747253450638,-714.75,0.00011468,2]
[361098566,1747253450648,-443.57,0.00011468,2]
[361098567,1747253450658,-400.0,0.00011468,2]
[361098568,1747253450667,-400.0,0.00011468,2]
[361098569,1747253450676,-600.97,0.00011468,2]
[361098570,1747253450686,-472.33,0.00011468,2]
[361098571,1747253450696,-400.0,0.00011468,2]
[361098572,1747253450706,-500.0,0.00011468,2]
[361098573,1747253450716,-400.0,0.00011468,2]
[361098574,1747253450725,-400.0,0.00011468,2]
[361098575,1747253450734,-400.0,0.00011468,2]
[361098576,1747253450744,-441.75,0.00011468,2]
[361098577,1747253450754,-709.43,0.00011468,2]
[361098578,1747253450764,-907.96,0.00011468,2]
[361098579,1747253450774,-522.74,0.00011468,2]
[361098580,1747253450783,-400.0,0.00011468,2]
[361098581,1747253450792,-400.0,0.00011468,2]
[361098582,1747253450802,-400.0,0.00011468,2]
[361098583,1747253450811,-768.62,0.00011468,2]
[361098584,1747253450821,-400.0,0.00011468,2]
[361098585,1747253450831,-667.2,0.00011468,2]
[361098586,1747253450840,-400.0,0.00011468,2]
[361098587,1747253450850,-400.0,0.00011468,2]
[361098588,1747253450859,-500.0,0.00011473,2]
[361098589,1747253450869,-500.0,0.00011473,2]